Workbook

Sheet начислено
B1: валовый сбор,т | C1: 11263220
B2: площадь,га | C2: 8074
C3: =SUM(C1)/C2 -> 1394.998761
B4: натуральные скидки,% | C4: 15
C5: =SUM(C3)/100*15 -> 209.2498142
C6: =SUM(C3)-C5 -> 1185.748947
B7: Дивиденды,% | C7: 6
B8: кг на 1 пай | C8: =ROUND(C6/100*C7,0) -> 71
A9: № | B9: Ф.И.О. | C9: ГА | D9: КГ | E9: тенге | F9: подоходный налог, 10% | G9: Сумма к выдаче
D10: =ROUND(C6/100*C7,0) -> 71 | E10: 11000
A11: 1 | B11: Азрапкин В.Н. | C11: 1176.85 | D11: =ROUND((D10)*C11,0) -> 83556 | E11: =SUM(E10)*D11/1000 -> 919116 | F11: =SUM(E11)*10% -> 91911.6 | G11: =SUM(E11)-F11 -> 827204.4
A12: 2 | B12: Асадуллаев З.Н. | C12: 26.16 | D12: =ROUND((D10)*C12,0) -> 1857 | E12: =SUM(E10)*D12/1000 -> 20427 | F12: 2042.7 | G12: 18384.3
A13: 3 | B13: Асадуллаева А.М. | C13: 10.9 | D13: =ROUND((D10)*C13,0) -> 774 | E13: =SUM(E10)*D13/1000 -> 8514 | F13: 851.4 | G13: 7662.6
A14: 4 | B14: Ашимов Г.К. | C14: 18.53 | D14: =ROUND((D10)*C14,0) -> 1316 | E14: =SUM(E10)*D14/1000 -> 14476 | F14: 1447.6 | G14: 13028.4
A15: 5 | B15: Ашимова Н.Г. | C15: 20.71 | D15: =ROUND((D10)*C15,0) -> 1470 | E15: =SUM(E10)*D15/1000 -> 16170 | F15: 1617 | G15: 14553
A16: 6 | B16: Аспанова Г.К. | C16: 28.34 | D16: =ROUND((D10)*C16,0) -> 2012 | E16: =SUM(E10)*D16/1000 -> 22132 | F16: 2213.2 | G16: 19918.8
A17: 7 | B17: Александров Н.И. | C17: 26.16 | D17: =ROUND((D10)*C17,0) -> 1857 | E17: =SUM(E10)*D17/1000 -> 20427 | F17: 2042.7 | G17: 18384.3
A18: 8 | B18: Александрова И.В. | C18: 26.16 | D18: =ROUND((D10)*C18,0) -> 1857 | E18: =SUM(E10)*D18/1000 -> 20427 | F18: 2042.7 | G18: 18384.3
A19: 9 | B19: Алахов Д.Л. | C19: 42.51 | D19: =ROUND((D10)*C19,0) -> 3018 | E19: =SUM(E10)*D19/1000 -> 33198 | G19: 33198
A20: 10 | B20: Амрина М.И. | C20: 7.63 | D20: =ROUND((D10)*C20,0) -> 542 | E20: =SUM(E10)*D20/1000 -> 5962 | F20: =SUM(E20)*10% -> 596.2 | G20: 5365.8
A21: 11 | B21: Бугаев В.В. | C21: 7.63 | D21: =ROUND((D10)*C21,0) -> 542 | E21: =SUM(E10)*D21/1000 -> 5962 | F21: 596.2 | G21: 5365.8
A22: 12 | B22: Белан Ф.И. | C22: 10.9 | D22: =ROUND((D10)*C22,0) -> 774 | E22: =SUM(E10)*D22/1000 -> 8514 | F22: 851.4 | G22: 7662.6
A23: 13 | B23: Белан Л.И. | C23: 104.64 | D23: =ROUND((D10)*C23,0) -> 7429 | E23: =SUM(E10)*D23/1000 -> 81719 | F23: 8171.9 | G23: 73547.1
A24: 14 | B24: Набиулина Г.С. | C24: 5.45 | D24: =ROUND((D10)*C24,0) -> 387 | E24: =SUM(E10)*D24/1000 -> 4257 | F24: 425.7 | G24: 3831.3
A25: 15 | B25: Беспалинова М.А. | C25: 44.69 | D25: =ROUND((D10)*C25,0) -> 3173 | E25: =SUM(E10)*D25/1000 -> 34903 | F25: 3490.3 | G25: 31412.7
A26: 16 | B26: Беспалинов Г.Б. | C26: 18.53 | D26: =ROUND((C26)*$D$10,0) -> 1316 | E26: =SUM($E$10)*D26/1000 -> 14476 | F26: 1447.6 | G26: =ROUND((E26)-F26,0) -> 13028

Sheet 0
A1: № | B1: Ф.И.О. | C1: сальдо
C2: кредит | D2: дебет
A3: 1 | B3: Азрапкин В.Н. | C3: 200 | D3: 100
A4: 2 | B4: Асадуллаев З.Н. | C4: 200 | D4: 200
A5: 3 | B5: Асадуллаева А.М. | C5: 200 | D5: 100
A6: 4 | B6: Ашимов Г.К. | C6: 200 | D6: 200
A7: 5 | B7: Ашимова Н.Г. | C7: 200 | D7: 100
A8: 6 | B8: Аспанова Г.К. | C8: 200 | D8: 200
A9: 7 | B9: Александров Н.И. | C9: 200 | D9: 100
A10: 8 | B10: Александрова И.В. | C10: 200 | D10: 200
A11: 9 | B11: Алахов Д.Л. | C11: 200 | D11: 100
A12: 10 | B12: Амрина М.И. | C12: 200 | D12: 200
A13: 11 | B13: Бугаев В.В. | C13: 200 | D13: 100
A14: 12 | B14: Белан Ф.И. | C14: 200 | D14: 200
A15: 13 | B15: Белан Л.И. | C15: 200 | D15: 100
A16: 14 | B16: Набиулина Г.С. | C16: 200 | D16: 200
A17: 15 | B17: Беспалинова М.А. | C17: 200 | D17: 100
A18: 16 | B18: Беспалинов Г.Б. | C18: 200 | D18: 200

Sheet 13
A1: № | B1: Ф.И.О. | C1: сальдо
C2: кредит | D2: дебет
A3: 1 | B3: Азрапкин В.Н.
A4: 2 | B4: Асадуллаев З.Н.
A5: 3 | B5: Асадуллаева А.М.
A6: 4 | B6: Ашимов Г.К.
A7: 5 | B7: Ашимова Н.Г.
A8: 6 | B8: Аспанова Г.К.
A9: 7 | B9: Александров Н.И.
A10: 8 | B10: Александрова И.В.
A11: 9 | B11: Алахов Д.Л.
A12: 10 | B12: Амрина М.И.
A13: 11 | B13: Бугаев В.В.
A14: 12 | B14: Белан Ф.И.
A15: 13 | B15: Белан Л.И.
A16: 14 | B16: Набиулина Г.С.
A17: 15 | B17: Беспалинова М.А.
A18: 16 | B18: Беспалинов Г.Б.

Sheet 1
A1: № | B1: Ф.И.О. | C1: сальдо | E1: реализация | J1: Сумма к выдаче
C2: кредит | D2: дебет | E2: баня | F2: септик | G2: мука | H2: птица | I2: отходы
A3: 1 | B3: Азрапкин В.Н. | C3: 300 | D3: =SUM(E3:I3) -> 5900 | E3: 50 | F3: 500 | G3: 5000 | H3: 150 | I3: 200
A4: 2 | B4: Асадуллаев З.Н. | D4: =SUM(E4:I4) -> 5900 | E4: 50 | F4: 500 | G4: 5000 | H4: 150 | I4: 200
A5: 3 | B5: Асадуллаева А.М. | D5: 5900 | E5: 50 | F5: 500 | G5: 5000 | H5: 150 | I5: 200
A6: 4 | B6: Ашимов Г.К. | D6: 5900 | E6: 50 | F6: 500 | G6: 5000 | H6: 150 | I6: 200
A7: 5 | B7: Ашимова Н.Г. | D7: 5900 | E7: 50 | F7: 500 | G7: 5000 | H7: 150 | I7: 200
A8: 6 | B8: Аспанова Г.К. | D8: 5900 | E8: 50 | F8: 500 | G8: 5000 | H8: 150 | I8: 200
A9: 7 | B9: Александров Н.И. | D9: 5900 | E9: 50 | F9: 500 | G9: 5000 | H9: 150 | I9: 200
A10: 8 | B10: Александрова И.В. | D10: 5900 | E10: 50 | F10: 500 | G10: 5000 | H10: 150 | I10: 200
A11: 9 | B11: Алахов Д.Л. | D11: 5900 | E11: 50 | F11: 500 | G11: 5000 | H11: 150 | I11: 200
A12: 10 | B12: Амрина М.И. | D12: 5900 | E12: 50 | F12: 500 | G12: 5000 | H12: 150 | I12: 200
A13: 11 | B13: Бугаев В.В. | D13: 5900 | E13: 50 | F13: 500 | G13: 5000 | H13: 150 | I13: 200
A14: 12 | B14: Белан Ф.И. | D14: 5900 | E14: 50 | F14: 500 | G14: 5000 | H14: 150 | I14: 200
A15: 13 | B15: Белан Л.И. | D15: 5900 | E15: 50 | F15: 500 | G15: 5000 | H15: 150 | I15: 200
A16: 14 | B16: Набиулина Г.С. | D16: 5900 | E16: 50 | F16: 500 | G16: 5000 | H16: 150 | I16: 200
A17: 15 | B17: Беспалинова М.А. | D17: 5900 | E17: 50 | F17: 500 | G17: 5000 | H17: 150 | I17: 200
A18: 16 | B18: Беспалинов Г.Б. | D18: 5900 | E18: 50 | F18: 500 | G18: 5000 | H18: 150 | I18: 200

Sheet 2
A1: № | B1: Ф.И.О. | C1: сальдо | E1: реализация | J1: Сумма к выдаче
C2: кредит | D2: дебет | E2: баня | F2: септик | G2: мука | H2: птица | I2: отходы
A3: 1 | B3: Азрапкин В.Н. | C3: =sht(C3) -> 500 | D3: =SUM(E3:I3) -> 5900 | E3: 50 | F3: 500 | G3: 5000 | H3: 150 | I3: 200
A4: 2 | B4: Асадуллаев З.Н. | D4: =SUM(E4:I4) -> 5900 | E4: 50 | F4: 500 | G4: 5000 | H4: 150 | I4: 200
A5: 3 | B5: Асадуллаева А.М. | D5: 5900 | E5: 50 | F5: 500 | G5: 5000 | H5: 150 | I5: 200
A6: 4 | B6: Ашимов Г.К. | D6: 5900 | E6: 50 | F6: 500 | G6: 5000 | H6: 150 | I6: 200
A7: 5 | B7: Ашимова Н.Г. | D7: 5900 | E7: 50 | F7: 500 | G7: 5000 | H7: 150 | I7: 200
A8: 6 | B8: Аспанова Г.К. | D8: 5900 | E8: 50 | F8: 500 | G8: 5000 | H8: 150 | I8: 200
A9: 7 | B9: Александров Н.И. | D9: 5900 | E9: 50 | F9: 500 | G9: 5000 | H9: 150 | I9: 200
A10: 8 | B10: Александрова И.В. | D10: 5900 | E10: 50 | F10: 500 | G10: 5000 | H10: 150 | I10: 200
A11: 9 | B11: Алахов Д.Л. | D11: 5900 | E11: 50 | F11: 500 | G11: 5000 | H11: 150 | I11: 200
A12: 10 | B12: Амрина М.И. | D12: 5900 | E12: 50 | F12: 500 | G12: 5000 | H12: 150 | I12: 200
A13: 11 | B13: Бугаев В.В. | D13: 5900 | E13: 50 | F13: 500 | G13: 5000 | H13: 150 | I13: 200
A14: 12 | B14: Белан Ф.И. | D14: 5900 | E14: 50 | F14: 500 | G14: 5000 | H14: 150 | I14: 200
A15: 13 | B15: Белан Л.И. | D15: 5900 | E15: 50 | F15: 500 | G15: 5000 | H15: 150 | I15: 200
A16: 14 | B16: Набиулина Г.С. | D16: 5900 | E16: 50 | F16: 500 | G16: 5000 | H16: 150 | I16: 200
A17: 15 | B17: Беспалинова М.А. | D17: 5900 | E17: 50 | F17: 500 | G17: 5000 | H17: 150 | I17: 200
A18: 16 | B18: Беспалинов Г.Б. | D18: 5900 | E18: 50 | F18: 500 | G18: 5000 | H18: 150 | I18: 200

Sheet 3
A1: № | B1: Ф.И.О. | C1: сальдо | E1: реализация | J1: Сумма к выдаче
C2: кредит | D2: дебет | E2: баня | F2: септик | G2: мука | H2: птица | I2: отходы
A3: 1 | B3: Азрапкин В.Н. | D3: =SUM(E3:I3) -> 5900 | E3: 50 | F3: 500 | G3: 5000 | H3: 150 | I3: 200
A4: 2 | B4: Асадуллаев З.Н. | D4: =SUM(E4:I4) -> 5900 | E4: 50 | F4: 500 | G4: 5000 | H4: 150 | I4: 200
A5: 3 | B5: Асадуллаева А.М. | D5: 5900 | E5: 50 | F5: 500 | G5: 5000 | H5: 150 | I5: 200
A6: 4 | B6: Ашимов Г.К. | D6: 5900 | E6: 50 | F6: 500 | G6: 5000 | H6: 150 | I6: 200
A7: 5 | B7: Ашимова Н.Г. | D7: 5900 | E7: 50 | F7: 500 | G7: 5000 | H7: 150 | I7: 200
A8: 6 | B8: Аспанова Г.К. | D8: 5900 | E8: 50 | F8: 500 | G8: 5000 | H8: 150 | I8: 200
A9: 7 | B9: Александров Н.И. | D9: 5900 | E9: 50 | F9: 500 | G9: 5000 | H9: 150 | I9: 200
A10: 8 | B10: Александрова И.В. | D10: 5900 | E10: 50 | F10: 500 | G10: 5000 | H10: 150 | I10: 200
A11: 9 | B11: Алахов Д.Л. | D11: 5900 | E11: 50 | F11: 500 | G11: 5000 | H11: 150 | I11: 200
A12: 10 | B12: Амрина М.И. | D12: 5900 | E12: 50 | F12: 500 | G12: 5000 | H12: 150 | I12: 200
A13: 11 | B13: Бугаев В.В. | D13: 5900 | E13: 50 | F13: 500 | G13: 5000 | H13: 150 | I13: 200
A14: 12 | B14: Белан Ф.И. | D14: 5900 | E14: 50 | F14: 500 | G14: 5000 | H14: 150 | I14: 200
A15: 13 | B15: Белан Л.И. | D15: 5900 | E15: 50 | F15: 500 | G15: 5000 | H15: 150 | I15: 200
A16: 14 | B16: Набиулина Г.С. | D16: 5900 | E16: 50 | F16: 500 | G16: 5000 | H16: 150 | I16: 200
A17: 15 | B17: Беспалинова М.А. | D17: 5900 | E17: 50 | F17: 500 | G17: 5000 | H17: 150 | I17: 200
A18: 16 | B18: Беспалинов Г.Б. | D18: 5900 | E18: 50 | F18: 500 | G18: 5000 | H18: 150 | I18: 200

Sheet 4
A1: № | B1: Ф.И.О. | C1: сальдо | E1: реализация | J1: Сумма к выдаче
C2: кредит | D2: дебет | E2: баня | F2: септик | G2: мука | H2: птица | I2: отходы
A3: 1 | B3: Азрапкин В.Н. | D3: =SUM(E3:I3) -> 5900 | E3: 50 | F3: 500 | G3: 5000 | H3: 150 | I3: 200
A4: 2 | B4: Асадуллаев З.Н. | D4: =SUM(E4:I4) -> 5900 | E4: 50 | F4: 500 | G4: 5000 | H4: 150 | I4: 200
A5: 3 | B5: Асадуллаева А.М. | D5: 5900 | E5: 50 | F5: 500 | G5: 5000 | H5: 150 | I5: 200
A6: 4 | B6: Ашимов Г.К. | D6: 5900 | E6: 50 | F6: 500 | G6: 5000 | H6: 150 | I6: 200
A7: 5 | B7: Ашимова Н.Г. | D7: 5900 | E7: 50 | F7: 500 | G7: 5000 | H7: 150 | I7: 200
A8: 6 | B8: Аспанова Г.К. | D8: 5900 | E8: 50 | F8: 500 | G8: 5000 | H8: 150 | I8: 200
A9: 7 | B9: Александров Н.И. | D9: 5900 | E9: 50 | F9: 500 | G9: 5000 | H9: 150 | I9: 200
A10: 8 | B10: Александрова И.В. | D10: 5900 | E10: 50 | F10: 500 | G10: 5000 | H10: 150 | I10: 200
A11: 9 | B11: Алахов Д.Л. | D11: 5900 | E11: 50 | F11: 500 | G11: 5000 | H11: 150 | I11: 200
A12: 10 | B12: Амрина М.И. | D12: 5900 | E12: 50 | F12: 500 | G12: 5000 | H12: 150 | I12: 200
A13: 11 | B13: Бугаев В.В. | D13: 5900 | E13: 50 | F13: 500 | G13: 5000 | H13: 150 | I13: 200
A14: 12 | B14: Белан Ф.И. | D14: 5900 | E14: 50 | F14: 500 | G14: 5000 | H14: 150 | I14: 200
A15: 13 | B15: Белан Л.И. | D15: 5900 | E15: 50 | F15: 500 | G15: 5000 | H15: 150 | I15: 200
A16: 14 | B16: Набиулина Г.С. | D16: 5900 | E16: 50 | F16: 500 | G16: 5000 | H16: 150 | I16: 200
A17: 15 | B17: Беспалинова М.А. | D17: 5900 | E17: 50 | F17: 500 | G17: 5000 | H17: 150 | I17: 200
A18: 16 | B18: Беспалинов Г.Б. | D18: 5900 | E18: 50 | F18: 500 | G18: 5000 | H18: 150 | I18: 200

Sheet 5
A1: № | B1: Ф.И.О. | C1: сальдо | E1: реализация | J1: Сумма к выдаче
C2: кредит | D2: дебет | E2: баня | F2: септик | G2: мука | H2: птица | I2: отходы
A3: 1 | B3: Азрапкин В.Н. | D3: =SUM(E3:I3) -> 5900 | E3: 50 | F3: 500 | G3: 5000 | H3: 150 | I3: 200
A4: 2 | B4: Асадуллаев З.Н. | D4: =SUM(E4:I4) -> 5900 | E4: 50 | F4: 500 | G4: 5000 | H4: 150 | I4: 200
A5: 3 | B5: Асадуллаева А.М. | D5: 5900 | E5: 50 | F5: 500 | G5: 5000 | H5: 150 | I5: 200
A6: 4 | B6: Ашимов Г.К. | D6: 5900 | E6: 50 | F6: 500 | G6: 5000 | H6: 150 | I6: 200
A7: 5 | B7: Ашимова Н.Г. | D7: 5900 | E7: 50 | F7: 500 | G7: 5000 | H7: 150 | I7: 200
A8: 6 | B8: Аспанова Г.К. | D8: 5900 | E8: 50 | F8: 500 | G8: 5000 | H8: 150 | I8: 200
A9: 7 | B9: Александров Н.И. | D9: 5900 | E9: 50 | F9: 500 | G9: 5000 | H9: 150 | I9: 200
A10: 8 | B10: Александрова И.В. | D10: 5900 | E10: 50 | F10: 500 | G10: 5000 | H10: 150 | I10: 200
A11: 9 | B11: Алахов Д.Л. | D11: 5900 | E11: 50 | F11: 500 | G11: 5000 | H11: 150 | I11: 200
A12: 10 | B12: Амрина М.И. | D12: 5900 | E12: 50 | F12: 500 | G12: 5000 | H12: 150 | I12: 200
A13: 11 | B13: Бугаев В.В. | D13: 5900 | E13: 50 | F13: 500 | G13: 5000 | H13: 150 | I13: 200
A14: 12 | B14: Белан Ф.И. | D14: 5900 | E14: 50 | F14: 500 | G14: 5000 | H14: 150 | I14: 200
A15: 13 | B15: Белан Л.И. | D15: 5900 | E15: 50 | F15: 500 | G15: 5000 | H15: 150 | I15: 200
A16: 14 | B16: Набиулина Г.С. | D16: 5900 | E16: 50 | F16: 500 | G16: 5000 | H16: 150 | I16: 200
A17: 15 | B17: Беспалинова М.А. | D17: 5900 | E17: 50 | F17: 500 | G17: 5000 | H17: 150 | I17: 200
A18: 16 | B18: Беспалинов Г.Б. | D18: 5900 | E18: 50 | F18: 500 | G18: 5000 | H18: 150 | I18: 200

Sheet 6
A1: № | B1: Ф.И.О. | C1: сальдо | E1: реализация | J1: Сумма к выдаче
C2: кредит | D2: дебет | E2: баня | F2: септик | G2: мука | H2: птица | I2: отходы
A3: 1 | B3: Азрапкин В.Н. | D3: =SUM(E3:I3) -> 5900 | E3: 50 | F3: 500 | G3: 5000 | H3: 150 | I3: 200
A4: 2 | B4: Асадуллаев З.Н. | D4: =SUM(E4:I4) -> 5900 | E4: 50 | F4: 500 | G4: 5000 | H4: 150 | I4: 200
A5: 3 | B5: Асадуллаева А.М. | D5: 5900 | E5: 50 | F5: 500 | G5: 5000 | H5: 150 | I5: 200
A6: 4 | B6: Ашимов Г.К. | D6: 5900 | E6: 50 | F6: 500 | G6: 5000 | H6: 150 | I6: 200
A7: 5 | B7: Ашимова Н.Г. | D7: 5900 | E7: 50 | F7: 500 | G7: 5000 | H7: 150 | I7: 200
A8: 6 | B8: Аспанова Г.К. | D8: 5900 | E8: 50 | F8: 500 | G8: 5000 | H8: 150 | I8: 200
A9: 7 | B9: Александров Н.И. | D9: 5900 | E9: 50 | F9: 500 | G9: 5000 | H9: 150 | I9: 200
A10: 8 | B10: Александрова И.В. | D10: 5900 | E10: 50 | F10: 500 | G10: 5000 | H10: 150 | I10: 200
A11: 9 | B11: Алахов Д.Л. | D11: 5900 | E11: 50 | F11: 500 | G11: 5000 | H11: 150 | I11: 200
A12: 10 | B12: Амрина М.И. | D12: 5900 | E12: 50 | F12: 500 | G12: 5000 | H12: 150 | I12: 200
A13: 11 | B13: Бугаев В.В. | D13: 5900 | E13: 50 | F13: 500 | G13: 5000 | H13: 150 | I13: 200
A14: 12 | B14: Белан Ф.И. | D14: 5900 | E14: 50 | F14: 500 | G14: 5000 | H14: 150 | I14: 200
A15: 13 | B15: Белан Л.И. | D15: 5900 | E15: 50 | F15: 500 | G15: 5000 | H15: 150 | I15: 200
A16: 14 | B16: Набиулина Г.С. | D16: 5900 | E16: 50 | F16: 500 | G16: 5000 | H16: 150 | I16: 200
A17: 15 | B17: Беспалинова М.А. | D17: 5900 | E17: 50 | F17: 500 | G17: 5000 | H17: 150 | I17: 200
A18: 16 | B18: Беспалинов Г.Б. | D18: 5900 | E18: 50 | F18: 500 | G18: 5000 | H18: 150 | I18: 200

Sheet 7
A1: № | B1: Ф.И.О. | C1: сальдо | E1: реализация | J1: Сумма к выдаче
C2: кредит | D2: дебет | E2: баня | F2: септик | G2: мука | H2: птица | I2: отходы
A3: 1 | B3: Азрапкин В.Н. | D3: =SUM(E3:I3) -> 5900 | E3: 50 | F3: 500 | G3: 5000 | H3: 150 | I3: 200
A4: 2 | B4: Асадуллаев З.Н. | D4: =SUM(E4:I4) -> 5900 | E4: 50 | F4: 500 | G4: 5000 | H4: 150 | I4: 200
A5: 3 | B5: Асадуллаева А.М. | D5: 5900 | E5: 50 | F5: 500 | G5: 5000 | H5: 150 | I5: 200
A6: 4 | B6: Ашимов Г.К. | D6: 5900 | E6: 50 | F6: 500 | G6: 5000 | H6: 150 | I6: 200
A7: 5 | B7: Ашимова Н.Г. | D7: 5900 | E7: 50 | F7: 500 | G7: 5000 | H7: 150 | I7: 200
A8: 6 | B8: Аспанова Г.К. | D8: 5900 | E8: 50 | F8: 500 | G8: 5000 | H8: 150 | I8: 200
A9: 7 | B9: Александров Н.И. | D9: 5900 | E9: 50 | F9: 500 | G9: 5000 | H9: 150 | I9: 200
A10: 8 | B10: Александрова И.В. | D10: 5900 | E10: 50 | F10: 500 | G10: 5000 | H10: 150 | I10: 200
A11: 9 | B11: Алахов Д.Л. | D11: 5900 | E11: 50 | F11: 500 | G11: 5000 | H11: 150 | I11: 200
A12: 10 | B12: Амрина М.И. | D12: 5900 | E12: 50 | F12: 500 | G12: 5000 | H12: 150 | I12: 200
A13: 11 | B13: Бугаев В.В. | D13: 5900 | E13: 50 | F13: 500 | G13: 5000 | H13: 150 | I13: 200
A14: 12 | B14: Белан Ф.И. | D14: 5900 | E14: 50 | F14: 500 | G14: 5000 | H14: 150 | I14: 200
A15: 13 | B15: Белан Л.И. | D15: 5900 | E15: 50 | F15: 500 | G15: 5000 | H15: 150 | I15: 200
A16: 14 | B16: Набиулина Г.С. | D16: 5900 | E16: 50 | F16: 500 | G16: 5000 | H16: 150 | I16: 200
A17: 15 | B17: Беспалинова М.А. | D17: 5900 | E17: 50 | F17: 500 | G17: 5000 | H17: 150 | I17: 200
A18: 16 | B18: Беспалинов Г.Б. | D18: 5900 | E18: 50 | F18: 500 | G18: 5000 | H18: 150 | I18: 200

Sheet 8
A1: № | B1: Ф.И.О. | C1: сальдо | E1: реализация | J1: Сумма к выдаче
C2: кредит | D2: дебет | E2: баня | F2: септик | G2: мука | H2: птица | I2: отходы
A3: 1 | B3: Азрапкин В.Н. | D3: =SUM(E3:I3) -> 5900 | E3: 50 | F3: 500 | G3: 5000 | H3: 150 | I3: 200
A4: 2 | B4: Асадуллаев З.Н. | D4: =SUM(E4:I4) -> 5900 | E4: 50 | F4: 500 | G4: 5000 | H4: 150 | I4: 200
A5: 3 | B5: Асадуллаева А.М. | D5: 5900 | E5: 50 | F5: 500 | G5: 5000 | H5: 150 | I5: 200
A6: 4 | B6: Ашимов Г.К. | D6: 5900 | E6: 50 | F6: 500 | G6: 5000 | H6: 150 | I6: 200
A7: 5 | B7: Ашимова Н.Г. | D7: 5900 | E7: 50 | F7: 500 | G7: 5000 | H7: 150 | I7: 200
A8: 6 | B8: Аспанова Г.К. | D8: 5900 | E8: 50 | F8: 500 | G8: 5000 | H8: 150 | I8: 200
A9: 7 | B9: Александров Н.И. | D9: 5900 | E9: 50 | F9: 500 | G9: 5000 | H9: 150 | I9: 200
A10: 8 | B10: Александрова И.В. | D10: 5900 | E10: 50 | F10: 500 | G10: 5000 | H10: 150 | I10: 200
A11: 9 | B11: Алахов Д.Л. | D11: 5900 | E11: 50 | F11: 500 | G11: 5000 | H11: 150 | I11: 200
A12: 10 | B12: Амрина М.И. | D12: 5900 | E12: 50 | F12: 500 | G12: 5000 | H12: 150 | I12: 200
A13: 11 | B13: Бугаев В.В. | D13: 5900 | E13: 50 | F13: 500 | G13: 5000 | H13: 150 | I13: 200
A14: 12 | B14: Белан Ф.И. | D14: 5900 | E14: 50 | F14: 500 | G14: 5000 | H14: 150 | I14: 200
A15: 13 | B15: Белан Л.И. | D15: 5900 | E15: 50 | F15: 500 | G15: 5000 | H15: 150 | I15: 200
A16: 14 | B16: Набиулина Г.С. | D16: 5900 | E16: 50 | F16: 500 | G16: 5000 | H16: 150 | I16: 200
A17: 15 | B17: Беспалинова М.А. | D17: 5900 | E17: 50 | F17: 500 | G17: 5000 | H17: 150 | I17: 200
A18: 16 | B18: Беспалинов Г.Б. | D18: 5900 | E18: 50 | F18: 500 | G18: 5000 | H18: 150 | I18: 200

Sheet 9
A1: № | B1: Ф.И.О. | C1: сальдо | E1: реализация | J1: Сумма к выдаче
C2: кредит | D2: дебет | E2: баня | F2: септик | G2: мука | H2: птица | I2: отходы
A3: 1 | B3: Азрапкин В.Н. | D3: 5900 | E3: 50 | F3: 500 | G3: 5000 | H3: 150 | I3: 200
A4: 2 | B4: Асадуллаев З.Н. | D4: 5900 | E4: 50 | F4: 500 | G4: 5000 | H4: 150 | I4: 200
A5: 3 | B5: Асадуллаева А.М. | D5: 5900 | E5: 50 | F5: 500 | G5: 5000 | H5: 150 | I5: 200
A6: 4 | B6: Ашимов Г.К. | D6: 5900 | E6: 50 | F6: 500 | G6: 5000 | H6: 150 | I6: 200
A7: 5 | B7: Ашимова Н.Г. | D7: 5900 | E7: 50 | F7: 500 | G7: 5000 | H7: 150 | I7: 200
A8: 6 | B8: Аспанова Г.К. | D8: 5900 | E8: 50 | F8: 500 | G8: 5000 | H8: 150 | I8: 200
A9: 7 | B9: Александров Н.И. | D9: 5900 | E9: 50 | F9: 500 | G9: 5000 | H9: 150 | I9: 200
A10: 8 | B10: Александрова И.В. | D10: 5900 | E10: 50 | F10: 500 | G10: 5000 | H10: 150 | I10: 200
A11: 9 | B11: Алахов Д.Л. | D11: 5900 | E11: 50 | F11: 500 | G11: 5000 | H11: 150 | I11: 200
A12: 10 | B12: Амрина М.И. | D12: 5900 | E12: 50 | F12: 500 | G12: 5000 | H12: 150 | I12: 200
A13: 11 | B13: Бугаев В.В. | D13: 5900 | E13: 50 | F13: 500 | G13: 5000 | H13: 150 | I13: 200
A14: 12 | B14: Белан Ф.И. | D14: 5900 | E14: 50 | F14: 500 | G14: 5000 | H14: 150 | I14: 200
A15: 13 | B15: Белан Л.И. | D15: 5900 | E15: 50 | F15: 500 | G15: 5000 | H15: 150 | I15: 200
A16: 14 | B16: Набиулина Г.С. | D16: 5900 | E16: 50 | F16: 500 | G16: 5000 | H16: 150 | I16: 200
A17: 15 | B17: Беспалинова М.А. | D17: 5900 | E17: 50 | F17: 500 | G17: 5000 | H17: 150 | I17: 200
A18: 16 | B18: Беспалинов Г.Б. | D18: 5900 | E18: 50 | F18: 500 | G18: 5000 | H18: 150 | I18: 200

Sheet 10
A1: № | B1: Ф.И.О. | C1: сальдо | E1: реализация | J1: Сумма к выдаче
C2: кредит | D2: дебет | E2: баня | F2: септик | G2: мука | H2: птица | I2: отходы
A3: 1 | B3: Азрапкин В.Н. | D3: 5900 | E3: 50 | F3: 500 | G3: 5000 | H3: 150 | I3: 200
A4: 2 | B4: Асадуллаев З.Н. | D4: 5900 | E4: 50 | F4: 500 | G4: 5000 | H4: 150 | I4: 200
A5: 3 | B5: Асадуллаева А.М. | D5: 5900 | E5: 50 | F5: 500 | G5: 5000 | H5: 150 | I5: 200
A6: 4 | B6: Ашимов Г.К. | D6: 5900 | E6: 50 | F6: 500 | G6: 5000 | H6: 150 | I6: 200
A7: 5 | B7: Ашимова Н.Г. | D7: 5900 | E7: 50 | F7: 500 | G7: 5000 | H7: 150 | I7: 200
A8: 6 | B8: Аспанова Г.К. | D8: 5900 | E8: 50 | F8: 500 | G8: 5000 | H8: 150 | I8: 200
A9: 7 | B9: Александров Н.И. | D9: 5900 | E9: 50 | F9: 500 | G9: 5000 | H9: 150 | I9: 200
A10: 8 | B10: Александрова И.В. | D10: 5900 | E10: 50 | F10: 500 | G10: 5000 | H10: 150 | I10: 200
A11: 9 | B11: Алахов Д.Л. | D11: 5900 | E11: 50 | F11: 500 | G11: 5000 | H11: 150 | I11: 200
A12: 10 | B12: Амрина М.И. | D12: 5900 | E12: 50 | F12: 500 | G12: 5000 | H12: 150 | I12: 200
A13: 11 | B13: Бугаев В.В. | D13: 5900 | E13: 50 | F13: 500 | G13: 5000 | H13: 150 | I13: 200
A14: 12 | B14: Белан Ф.И. | D14: 5900 | E14: 50 | F14: 500 | G14: 5000 | H14: 150 | I14: 200
A15: 13 | B15: Белан Л.И. | D15: 5900 | E15: 50 | F15: 500 | G15: 5000 | H15: 150 | I15: 200
A16: 14 | B16: Набиулина Г.С. | D16: 5900 | E16: 50 | F16: 500 | G16: 5000 | H16: 150 | I16: 200
A17: 15 | B17: Беспалинова М.А. | D17: 5900 | E17: 50 | F17: 500 | G17: 5000 | H17: 150 | I17: 200
A18: 16 | B18: Беспалинов Г.Б. | D18: 5900 | E18: 50 | F18: 500 | G18: 5000 | H18: 150 | I18: 200

Sheet 11
A1: № | B1: Ф.И.О. | C1: сальдо | E1: реализация | J1: Сумма к выдаче
C2: кредит | D2: дебет | E2: баня | F2: септик | G2: мука | H2: птица | I2: отходы
A3: 1 | B3: Азрапкин В.Н. | D3: 5900 | E3: 50 | F3: 500 | G3: 5000 | H3: 150 | I3: 200
A4: 2 | B4: Асадуллаев З.Н. | D4: 5900 | E4: 50 | F4: 500 | G4: 5000 | H4: 150 | I4: 200
A5: 3 | B5: Асадуллаева А.М. | D5: 5900 | E5: 50 | F5: 500 | G5: 5000 | H5: 150 | I5: 200
A6: 4 | B6: Ашимов Г.К. | D6: 5900 | E6: 50 | F6: 500 | G6: 5000 | H6: 150 | I6: 200
A7: 5 | B7: Ашимова Н.Г. | D7: 5900 | E7: 50 | F7: 500 | G7: 5000 | H7: 150 | I7: 200
A8: 6 | B8: Аспанова Г.К. | D8: 5900 | E8: 50 | F8: 500 | G8: 5000 | H8: 150 | I8: 200
A9: 7 | B9: Александров Н.И. | D9: 5900 | E9: 50 | F9: 500 | G9: 5000 | H9: 150 | I9: 200
A10: 8 | B10: Александрова И.В. | D10: 5900 | E10: 50 | F10: 500 | G10: 5000 | H10: 150 | I10: 200
A11: 9 | B11: Алахов Д.Л. | D11: 5900 | E11: 50 | F11: 500 | G11: 5000 | H11: 150 | I11: 200
A12: 10 | B12: Амрина М.И. | D12: 5900 | E12: 50 | F12: 500 | G12: 5000 | H12: 150 | I12: 200
A13: 11 | B13: Бугаев В.В. | D13: 5900 | E13: 50 | F13: 500 | G13: 5000 | H13: 150 | I13: 200
A14: 12 | B14: Белан Ф.И. | D14: 5900 | E14: 50 | F14: 500 | G14: 5000 | H14: 150 | I14: 200
A15: 13 | B15: Белан Л.И. | D15: 5900 | E15: 50 | F15: 500 | G15: 5000 | H15: 150 | I15: 200
A16: 14 | B16: Набиулина Г.С. | D16: 5900 | E16: 50 | F16: 500 | G16: 5000 | H16: 150 | I16: 200
A17: 15 | B17: Беспалинова М.А. | D17: 5900 | E17: 50 | F17: 500 | G17: 5000 | H17: 150 | I17: 200
A18: 16 | B18: Беспалинов Г.Б. | D18: 5900 | E18: 50 | F18: 500 | G18: 5000 | H18: 150 | I18: 200

Sheet 12
A1: № | B1: Ф.И.О. | C1: сальдо | E1: реализация | J1: Сумма к выдаче
C2: кредит | D2: дебет | E2: баня | F2: септик | G2: мука | H2: птица | I2: отходы
A3: 1 | B3: Азрапкин В.Н. | D3: 5900 | E3: 50 | F3: 500 | G3: 5000 | H3: 150 | I3: 200
A4: 2 | B4: Асадуллаев З.Н. | D4: 5900 | E4: 50 | F4: 500 | G4: 5000 | H4: 150 | I4: 200
A5: 3 | B5: Асадуллаева А.М. | D5: 5900 | E5: 50 | F5: 500 | G5: 5000 | H5: 150 | I5: 200
A6: 4 | B6: Ашимов Г.К. | D6: 5900 | E6: 50 | F6: 500 | G6: 5000 | H6: 150 | I6: 200
A7: 5 | B7: Ашимова Н.Г. | D7: 5900 | E7: 50 | F7: 500 | G7: 5000 | H7: 150 | I7: 200
A8: 6 | B8: Аспанова Г.К. | D8: 5900 | E8: 50 | F8: 500 | G8: 5000 | H8: 150 | I8: 200
A9: 7 | B9: Александров Н.И. | D9: 5900 | E9: 50 | F9: 500 | G9: 5000 | H9: 150 | I9: 200
A10: 8 | B10: Александрова И.В. | D10: 5900 | E10: 50 | F10: 500 | G10: 5000 | H10: 150 | I10: 200
A11: 9 | B11: Алахов Д.Л. | D11: 5900 | E11: 50 | F11: 500 | G11: 5000 | H11: 150 | I11: 200
A12: 10 | B12: Амрина М.И. | D12: 5900 | E12: 50 | F12: 500 | G12: 5000 | H12: 150 | I12: 200
A13: 11 | B13: Бугаев В.В. | D13: 5900 | E13: 50 | F13: 500 | G13: 5000 | H13: 150 | I13: 200
A14: 12 | B14: Белан Ф.И. | D14: 5900 | E14: 50 | F14: 500 | G14: 5000 | H14: 150 | I14: 200
A15: 13 | B15: Белан Л.И. | D15: 5900 | E15: 50 | F15: 500 | G15: 5000 | H15: 150 | I15: 200
A16: 14 | B16: Набиулина Г.С. | D16: 5900 | E16: 50 | F16: 500 | G16: 5000 | H16: 150 | I16: 200
A17: 15 | B17: Беспалинова М.А. | D17: 5900 | E17: 50 | F17: 500 | G17: 5000 | H17: 150 | I17: 200
A18: 16 | B18: Беспалинов Г.Б. | D18: 5900 | E18: 50 | F18: 500 | G18: 5000 | H18: 150 | I18: 200

Sheet l
A1: 0 | B1: =CHAR(39)&A1&CHAR(39)&"!" -> '0'!
A2: 1 | B2: =CHAR(39)&A2&CHAR(39)&"!" -> '1'!
A3: 2 | B3: '2'!
A4: 3 | B4: '3'!
A5: 4 | B5: '4'!
A6: 5 | B6: '5'!
A7: 6 | B7: '6'!
A8: 7 | B8: '7'!
A9: 8 | B9: '8'!
A10: 9 | B10: '9'!
A11: 10 | B11: '10'!
A12: 11 | B12: '11'!
A13: 12 | B13: '12'!
A14: 13 | B14: '13'!
